bitfinex/quotes_SOLUSD_20250901
["timestamp","ask_amount","ask_price","bid_price","bid_amount"]
[1756718415888,195.30197804,203.48,203.47,0.03]
[1756718416090,195.92197804,203.48,203.47,0.03]
[1756718416289,195.30197804,203.48,203.47,0.03]
[1756718418621,195.92197804,203.48,203.47,0.03]
[1756718418815,195.30197804,203.48,203.47,0.03]
[1756718419320,195.92197804,203.48,203.47,0.03]
[1756718419522,61.22197804,203.48,203.47,0.03]
[1756718421518,39.59559401,203.44,203.37,0.66]
[1756718421711,0.14216157,203.47,203.37,0.66]
[1756718421712,13.59559401,203.39,203.37,0.66]
[1756718421912,38.48,203.38,203.37,0.66]
[1756718422323,13.59559401,203.39,203.37,0.72]
[1756718422505,38.48,203.38,203.37,0.72]
[1756718423703,52.07559401,203.38,203.37,0.72]
[1756718424040,52.21775558,203.38,203.37,0.75]
[1756718424836,13.59559401,203.37,203.34,1.21973455]
[1756718425044,38.48,203.36,203.34,6.13760549]
[1756718425214,38.48,203.36,203.34,8.38760549]
[1756718425718,38.48,203.36,203.35,3.46973455]
[1756718426102,38.48,203.38,203.35,3.46973455]
[1756718426297,38.48,203.38,203.36,3.46973455]
[1756718426838,38.48,203.38,203.35,3.46973455]
[1756718427008,52.07559401,203.38,203.37,0.72]
[1756718428815,26.14216157,203.4,203.37,0.72]
[1756718429126,52.07559401,203.39,203.37,0.72]
[1756718429304,13.59559401,203.39,203.37,0.72]
[1756718429503,38.48,203.38,203.37,0.72]
[1756718429931,52.07559401,203.38,203.37,0.72]
[1756718430140,52.07559401,203.38,203.35,4.18973455]
[1756718430824,13.59559401,203.37,203.35,0.72]
[1756718431028,56.99255663,203.38,203.32,4.21973455]
[1756718431029,38.48,203.36,203.32,4.21973455]
[1756718431209,38.48,203.36,203.33,0.72]
[1756718431638,38.48,203.36,203.34,0.72]
[1756718431839,38.48,203.36,203.35,0.72]
[1756718432019,38.48,203.39,203.35,4.18973455]
[1756718432217,38.48,203.39,203.37,3.46973455]
[1756718432430,38.48,203.39,203.37,0.72]
[1756718432616,38.48,203.39,203.37,4.18973455]
[1756718433140,38.48,203.39,203.38,0.72]
[1756718434016,13.59559401,203.41,203.38,0.72]
[1756718434217,12.28585838,203.49,203.4,3.46973455]
[1756718434218,13.59559401,203.46,203.4,3.46973455]
[1756718434525,13.59559401,203.44,203.41,4.18973455]
[1756718434719,38.48,203.43,203.41,4.18973455]
[1756718434931,38.48,203.43,203.41,0.72]
[1756718435136,38.48,203.43,203.39,4.18973455]
[1756718435317,38.48,203.43,203.4,0.72]
[1756718435710,38.48,203.43,203.41,0.72]
[1756718435910,38.48,203.43,203.41,4.18973455]
[1756718436135,52.07559401,203.43,203.42,0.72]
[1756718436318,38.48,203.43,203.42,4.18973455]
[1756718436512,4.18973455,203.5,203.42,4.18973455]
[1756718436716,4.18973455,203.5,203.45,3.46973455]
[1756718436717,52.07559401,203.48,203.45,3.46973455]
[1756718436915,52.07559401,203.48,203.44,3.46973455]
[1756718437233,52.07559401,203.48,203.44,4.18973455]
[1756718437639,52.79559401,203.48,203.44,4.18973455]
[1756718438019,52.79559401,203.48,203.43,3.46973455]
[1756718438218,13.59559401,203.46,203.41,3.46973455]
[1756718438530,52.07559401,203.46,203.42,4.18973455]
[1756718438725,52.07559401,203.46,203.43,4.18973455]
[1756718439126,39.59559401,203.43,203.36,5.63738788]
[1756718439330,41.94973455,203.42,203.36,4.18973455]
[1756718439517,42.66973455,203.42,203.36,0.72]
[1756718439723,42.66973455,203.42,203.36,4.18973455]
[1756718440237,38.48,203.42,203.38,3.46973455]
[1756718440442,38.48,203.42,203.39,0.72]
[1756718440639,64.48,203.43,203.4,4.18973455]
[1756718440839,38.48,203.43,203.41,0.72]
[1756718441562,38.48,203.43,203.41,5.63614165]
[1756718442440,0.14216157,203.47,203.42,4.18973455]
[1756718442643,38.48,203.46,203.43,0.72]
[1756718443424,39.2,203.46,203.41,8.38581634]
[1756718443618,38.48,203.46,203.42,0.72]
[1756718444313,38.48,203.46,203.43,0.72]
[1756718444733,38.48,203.46,203.42,3.46973455]
[1756718444945,38.48,203.46,203.42,4.18973455]
[1756718445144,14.34559401,203.48,203.44,3.46973455]
[1756718445452,39.18,203.47,203.42,8.38553219]
[1756718445628,39.18,203.47,203.42,9.10553219]
[1756718446442,0.72,203.46,203.42,9.10553219]
[1756718447639,38.46,203.47,203.42,9.10553219]
[1756718447819,39.18,203.47,203.42,9.10553219]
[1756718448847,0.72,203.46,203.42,3.46973455]
[1756718449020,0.72,203.45,203.41,3.46973455]
[1756718449222,39.18,203.45,203.4,4.18973455]
[1756718449426,39.18,203.45,203.4,9.10609313]
[1756718449639,39.18,203.45,203.4,8.38609313]
[1756718449967,38.46,203.45,203.41,0.72]
[1756718450125,38.46,203.45,203.42,3.46973455]
[1756718450329,38.46,203.45,203.42,4.18973455]
[1756718450539,38.46,203.45,203.41,8.38578245]
[1756718450734,39.18,203.45,203.41,9.10578245]
[1756718451559,38.46,203.45,203.41,9.10578245]
[1756718451737,39.14,203.45,203.41,9.10578245]
[1756718451940,38.46,203.45,203.41,9.10578245]
[1756718452324,39.14,203.45,203.41,9.10578245]
[1756718452943,39.14,203.45,203.41,8.38578245]
[1756718453722,38.46,203.45,203.41,8.38578245]
[1756718453918,39.14,203.45,203.41,8.38578245]
[1756718454263,14.27559401,203.44,203.4,3.46973455]
[1756718454555,14.27559401,203.44,203.4,4.11973455]
[1756718455127,13.59559401,203.44,203.41,3.46973455]
[1756718455445,13.59559401,203.44,203.41,4.11973455]
[1756718455640,0.68,203.46,203.41,8.38576868]
[1756718455948,0.68,203.46,203.39,0.65]
[1756718455949,39.14,203.45,203.39,0.65]
[1756718456255,13.59559401,203.44,203.41,3.46973455]
[1756718456926,14.27559401,203.44,203.41,3.46973455]
[1756718457627,14.27559401,203.44,203.4,0.65]
[1756718457823,14.27559401,203.44,203.41,3.46973455]
[1756718459066,14.27559401,203.44,203.41,8.38584557]
[1756718459067,13.59559401,203.44,203.41,8.38584557]
[1756718459253,14.27559401,203.44,203.41,3.46973455]
[1756718459452,0.68,203.43,203.39,3.46973455]
[1756718459759,43.06532856,203.41,203.36,5.566355]
[1756718459946,0.68,203.4,203.36,5.566355]
[1756718460139,0.68,203.39,203.36,3.46973455]
[1756718460547,40.27559401,203.41,203.36,3.46973455]
[1756718460747,0.68,203.4,203.36,3.46973455]
[1756718460941,4.29189612,203.44,203.38,3.46973455]
[1756718461268,13.59559401,203.42,203.37,3.49973455]
[1756718461574,13.59559401,203.39,203.37,0.03]
[1756718462241,38.44,203.4,203.37,4.14973455]
[1756718462575,13.59559401,203.42,203.39,3.46973455]
[1756718462740,38.44,203.43,203.41,3.46973455]
[1756718463159,13.59559401,203.46,203.42,3.46973455]
[1756718463355,38.5,203.47,203.44,3.46973455]
[1756718463541,0.06,203.47,203.46,3.46973455]
[1756718463743,0.06,203.47,203.45,0.65]
[1756718463744,0.06,203.47,203.45,5.56502816]
[1756718463944,0.06,203.47,203.46,3.46973455]
[1756718464347,0.06,203.47,203.46,4.11973455]
[1756718465254,0.02390244,203.48,203.46,4.11973455]
[1756718465482,0.02390244,203.48,203.47,4.11973455]
[1756718465853,0.02390244,203.48,203.47,9.03446399]
[1756718466052,0.02390244,203.48,203.4,29.46973455]
[1756718466053,0.02390244,203.48,203.46,3.46973455]
[1756718467168,0.02390244,203.48,203.44,5.56541202]
[1756718467474,0.02390244,203.48,203.42,3.46973455]
[1756718467475,13.59559401,203.46,203.42,3.46973455]
[1756718467851,14.27559401,203.46,203.42,3.46973455]
[1756718468862,4.91497965,203.46,203.41,3.46973455]
[1756718469160,13.73775558,203.44,203.39,3.46973455]
[1756718469482,0.68,203.43,203.39,3.46973455]
[1756718469957,0.68,203.43,203.38,4.91685469]
[1756718470153,13.59559401,203.45,203.41,3.46973455]
[1756718470386,0.68,203.44,203.41,3.46973455]
[1756718470687,0.68,203.44,203.4,3.46973455]
[1756718470891,52.03559401,203.45,203.4,4.11973455]
[1756718471067,52.71559401,203.45,203.4,4.11973455]
[1756718471374,52.03559401,203.45,203.4,4.11973455]
[1756718471562,52.71559401,203.45,203.4,4.11973455]
[1756718471762,0.68,203.44,203.4,4.11973455]
[1756718472360,52.03559401,203.45,203.41,4.11973455]
[1756718472568,52.71559401,203.45,203.41,4.11973455]
[1756718472880,0.68,203.44,203.4,8.38591952]
[1756718473068,0.68,203.43,203.39,3.46973455]
[1756718473381,0.68,203.43,203.39,4.11973455]
[1756718473993,60.42056254,203.45,203.39,3.46973455]
[1756718474179,0.68,203.42,203.37,3.49973455]
[1756718474376,0.68,203.41,203.37,4.14973455]
[1756718474956,0.68,203.41,203.37,9.06682983]
[1756718475156,38.44,203.42,203.38,4.11973455]
[1756718475374,38.44,203.42,203.39,4.11973455]
[1756718475573,13.73775558,203.43,203.39,4.11973455]
[1756718475775,52.03559401,203.43,203.39,4.11973455]
[1756718476186,13.73775558,203.45,203.4,4.11973455]
[1756718476488,13.73775558,203.45,203.37,4.94709528]
[1756718476489,38.44,203.44,203.41,9.03589673]
[1756718476783,52.03559401,203.45,203.41,9.03589673]
[1756718476991,52.03559401,203.45,203.41,4.11973455]
[1756718477158,52.03559401,203.45,203.4,3.46973455]
[1756718477364,0.68,203.44,203.4,3.46973455]
[1756718478983,0.68,203.44,203.4,4.11973455]
[1756718479290,0.68,203.44,203.39,8.38634114]
[1756718479661,39.12,203.44,203.4,0.65]
[1756718480195,38.44,203.44,203.4,4.11973455]
[1756718480584,38.44,203.44,203.41,0.65]
[1756718481172,38.44,203.44,203.41,5.56610844]
[1756718481394,13.59559401,203.45,203.41,5.56610844]
[1756718481563,52.03559401,203.45,203.41,5.56610844]
[1756718482265,52.70559401,203.45,203.41,5.56610844]
[1756718482592,52.70559401,203.45,203.41,4.91610844]
[1756718482979,52.70559401,203.45,203.4,8.3860958]
[1756718483389,52.70559401,203.45,203.4,9.0360958]
[1756718484086,0.67,203.44,203.4,9.0360958]
[1756718485493,13.59559401,203.45,203.41,0.65]
[1756718485682,199.14,203.46,203.42,4.11973455]
[1756718485885,64.44,203.46,203.42,4.11973455]
[1756718486392,65.11,203.46,203.43,4.91569581]
[1756718486610,0.67,203.45,203.41,8.38570826]
[1756718487197,64.44,203.46,203.41,8.38570826]
[1756718487375,0.67,203.44,203.4,4.91635888]
[1756718487578,0.67,203.43,203.4,4.91635888]
[1756718487777,13.59559401,203.44,203.4,5.56635888]
[1756718487977,14.26559401,203.44,203.4,5.56635888]
[1756718488909,14.26559401,203.44,203.4,4.91635888]
[1756718489398,14.26559401,203.44,203.4,0.65]
[1756718490181,13.59559401,203.44,203.39,8.41639711]
[1756718490391,17.06532856,203.42,203.39,0.03]
[1756718490713,52.03559401,203.42,203.39,0.03]
[1756718490908,43.06532856,203.4,203.39,0.03]
[1756718491110,43.20749013,203.4,203.39,0.03]
[1756718491277,43.87749013,203.4,203.39,0.03]
[1756718491484,39.59559401,203.4,203.39,0.03]
[1756718491694,78.82775558,203.4,203.39,0.03]
[1756718491893,39.59559401,203.4,203.39,0.03]
[1756718492091,38.42,203.4,203.39,0.03]
[1756718492701,52.68559401,203.4,203.39,0.03]
[1756718494093,52.01559401,203.4,203.39,0.03]
[1756718494293,52.68559401,203.4,203.39,0.03]
[1756718494980,38.42,203.4,203.39,0.03]
[1756718496311,26.0,203.41,203.39,0.03]
[1756718496501,26.0,203.43,203.39,4.14973455]
[1756718496701,64.42,203.43,203.4,4.11973455]
[1756718497013,64.42,203.43,203.39,0.03]
[1756718497186,64.42,203.43,203.39,0.68]
[1756718497395,65.09,203.43,203.39,0.68]
[1756718499798,65.09,203.43,203.39,5.59660068]
[1756718500322,65.09,203.43,203.39,9.06633523]
[1756718501221,38.42,203.43,203.39,4.94660068]
[1756718501407,38.42,203.43,203.4,4.11973455]
[1756718501619,38.42,203.43,203.4,3.46973455]
[1756718501817,39.09,203.43,203.4,3.46973455]
[1756718502019,0.67,203.42,203.39,3.49973455]
[1756718502317,0.67,203.41,203.39,0.03]
[1756718502520,13.73775558,203.4,203.39,0.03]
[1756718502700,14.40775558,203.4,203.39,0.03]
[1756718504428,13.59559401,203.4,203.39,0.03]
[1756718504795,14.26559401,203.4,203.39,0.03]
[1756718505522,14.40775558,203.4,203.39,0.03]
[1756718505693,19.32417642,203.4,203.39,0.03]
[1756718505894,14.26559401,203.4,203.39,0.03]
[1756718506218,19.32417642,203.4,203.39,0.03]
[1756718506524,26.26364552,203.4,203.39,0.03]
[1756718507021,28.23442852,203.4,203.39,0.03]
[1756718507192,24.76469397,203.4,203.39,0.03]
[1756718507393,22.79391097,203.4,203.39,0.03]
[1756718507824,26.65466998,203.4,203.39,0.03]
[1756718509221,26.26364552,203.4,203.39,0.03]
[1756718510023,26.81140753,203.4,203.39,0.03]
[1756718510196,22.79391097,203.4,203.39,0.03]
[1756718511102,61.21391097,203.4,203.39,0.03]
[1756718512203,55.62749013,203.4,203.39,0.03]
[1756718512526,81.48532856,203.4,203.39,0.03]
[1756718512731,81.62749013,203.4,203.39,0.03]
[1756718513201,86.54391097,203.4,203.39,0.03]
[1756718515318,87.23391097,203.4,203.39,0.03]
[1756718516003,81.62749013,203.4,203.39,0.03]
[1756718516830,13.59559401,203.41,203.39,0.75]
[1756718517002,13.59559401,203.4,203.39,0.75]
[1756718517202,52.01559401,203.4,203.39,0.75]
[1756718517419,52.01559401,203.4,203.39,0.03]
[1756718520708,13.73775558,203.42,203.39,0.75]
[1756718521031,38.42,203.41,203.39,0.75]
[1756718521434,38.42,203.41,203.4,0.72]
[1756718521610,38.42,203.41,203.39,0.03]
[1756718522443,38.42,203.41,203.4,0.72]
[1756718523138,38.42,203.41,203.4,5.63642084]
[1756718523351,38.42,203.42,203.4,5.63642084]
[1756718523511,38.42,203.42,203.41,0.72]
[1756718524014,160.7,203.43,203.41,0.72]
[1756718524228,186.71559401,203.43,203.42,0.72]
[1756718524525,173.12,203.43,203.42,0.72]
[1756718525214,173.12,203.43,203.4,0.72]
[1756718525402,173.12,203.43,203.41,0.72]
[1756718526221,13.59559401,203.42,203.39,0.03]
[1756718526407,13.59559401,203.4,203.39,0.03]
[1756718526610,17.06532856,203.4,203.39,0.03]
[1756718526810,17.75532856,203.4,203.39,0.03]
[1756718527418,17.89749013,203.4,203.39,0.03]
[1756718527724,14.42775558,203.4,203.39,0.03]
[1756718527907,52.13775558,203.4,203.39,0.03]
[1756718531546,51.99559401,203.4,203.39,0.03]
[1756718532027,29.61189612,203.43,203.39,0.75]
[1756718532235,51.99559401,203.42,203.39,0.75]
[1756718532438,52.68559401,203.42,203.39,0.03]
[1756718532732,51.99559401,203.42,203.39,0.03]
[1756718533038,13.59559401,203.4,203.39,0.03]
[1756718533247,51.99559401,203.4,203.39,0.03]
[1756718533813,13.59559401,203.4,203.39,0.03]
[1756718534164,38.4,203.4,203.39,4.21973455]
[1756718534633,38.4,203.4,203.39,0.03]
[1756718535657,38.4,203.4,203.39,0.75]
[1756718535840,38.4,203.4,203.39,4.21973455]
[1756718536031,38.4,203.4,203.39,0.03]
[1756718536447,38.4,203.4,203.39,0.75]
[1756718537144,38.4,203.4,203.39,5.66666256]
[1756718538636,38.4,203.4,203.39,4.94666256]
[1756718538829,38.4,203.4,203.39,5.66666256]
[1756718539250,13.59559401,203.42,203.39,9.13639711]
[1756718539555,134.7,203.45,203.41,3.46973455]
[1756718539861,38.4,203.46,203.43,3.46973455]
[1756718540037,38.4,203.46,203.44,0.72]
[1756718540231,38.4,203.46,203.44,4.18973455]
[1756718540434,0.02390244,203.48,203.45,3.46973455]
[1756718540637,0.02390244,203.48,203.47,3.46973455]
[1756718540862,38.42390244,203.48,203.47,3.46973455]
[1756718541055,38.42390244,203.48,203.47,4.18973455]
[1756718541248,0.02390244,203.48,203.47,9.10446399]
[1756718544439,0.00390244,203.48,203.47,9.10446399]
[1756718544635,0.00390244,203.48,203.47,12.57419854]
[1756718545457,0.00390244,203.48,203.47,17.38956787]
[1756718546859,0.00390244,203.48,203.47,52.29983332]
[1756718547874,0.00390244,203.48,203.47,47.48446399]
[1756718548076,0.00390244,203.48,203.47,35.10446399]
[1756718552570,0.00390244,203.48,203.47,34.38446399]
[1756718553139,0.00390244,203.48,203.47,8.38446399]
[1756718553782,0.00390244,203.48,203.47,3.46973455]
[1756718553960,0.66390244,203.48,203.47,3.46973455]
[1756718554287,0.66390244,203.48,203.46,3.46973455]
[1756718555870,0.66390244,203.48,203.46,8.38464055]
[1756718556070,0.00390244,203.48,203.47,4.14973455]
[1756718556575,0.00390244,203.48,203.47,3.46973455]
[1756718557473,0.00390244,203.48,203.47,8.38446399]
[1756718557851,0.00390244,203.48,203.47,9.06446399]
[1756718560684,0.00390244,203.48,203.47,47.42446399]
[1756718564571,0.00390244,203.48,203.47,9.06446399]
[1756718564782,0.00390244,203.48,203.47,4.91472944]
[1756718564968,0.00390244,203.48,203.47,46.74446399]
[1756718565871,0.66390244,203.48,203.46,38.36]
[1756718566073,0.00390244,203.48,203.47,0.03]
[1756718566269,0.00390244,203.48,203.47,3.49973455]
[1756718566681,0.00390244,203.48,203.47,8.41446399]
[1756718571096,0.00390244,203.48,203.47,9.09446399]
[1756718571382,0.00390244,203.48,203.47,8.41446399]
[1756718577194,0.00390244,203.48,203.47,0.03]
[1756718577392,0.00390244,203.48,203.47,3.49973455]
[1756718577589,0.70390244,203.48,203.47,3.49973455]
[1756718580305,0.70390244,203.48,203.47,0.03]
[1756718580306,14.29949645,203.48,203.47,0.03]
[1756718580475,17.769231,203.48,203.47,0.03]
[1756718581296,14.29949645,203.48,203.47,0.03]
[1756718581595,0.00390244,203.48,203.47,3.49973455]
[1756718581785,0.70390244,203.48,203.47,0.03]
[1756718582594,0.00390244,203.48,203.47,3.49973455]
[1756718583284,0.00390244,203.48,203.47,47.43446399]
[1756718583597,0.03,203.51,203.47,59.7212876]
[1756718583788,0.03,203.51,203.5,3.46973455]
[1756718584098,0.03,203.51,203.5,41.80973455]
[1756718584310,0.03,203.51,203.5,45.9594691]
[1756718585394,0.03,203.51,203.5,50.87347401]
[1756718586096,0.06,203.53,203.52,26.0]
[1756718586396,0.06,203.53,203.52,29.46973455]
[1756718586701,0.06,203.53,203.52,30.14973455]
[1756718587190,0.06,203.54,203.53,26.0]
[1756718587389,0.06,203.54,203.53,73.40301514]
[1756718588080,0.06,203.56,203.53,69.93328059]
[1756718588281,0.7,203.63,203.55,3.46973455]
[1756718588489,0.7,203.63,203.61,3.46973455]
[1756718588804,0.7,203.63,203.62,3.46973455]
[1756718588994,0.7,203.63,203.61,3.46973455]
[1756718589381,0.7,203.63,203.61,8.38093612]
[1756718590902,0.7,203.63,203.62,3.46973455]
[1756718591800,0.06,203.64,203.62,3.46973455]
[1756718592002,0.06,203.64,203.63,3.46973455]
[1756718592526,13.73775558,203.63,203.56,6.8801057]
[1756718592680,13.59559401,203.61,203.56,6.8801057]
[1756718592885,0.7,203.6,203.58,3.46973455]
[1756718593108,0.14216157,203.63,203.59,3.46973455]
[1756718593317,0.7,203.62,203.55,4.91264737]
[1756718593501,13.59559401,203.6,203.53,5.59307207]
[1756718593795,0.7,203.59,203.55,3.46973455]
[1756718594001,0.7,203.58,203.55,3.46973455]
[1756718594310,13.59559401,203.6,203.55,3.46973455]
[1756718594519,0.7,203.59,203.56,8.38211895]
[1756718595215,13.59559401,203.61,203.56,4.9123844]
[1756718595511,0.7,203.59,203.56,8.38211895]
[1756718596396,3.46973455,203.63,203.57,3.46973455]
[1756718596593,0.7,203.62,203.57,3.46973455]
[1756718596786,0.7,203.61,203.57,3.46973455]
[1756718597197,0.7,203.61,203.57,4.14973455]
[1756718597490,0.7,203.61,203.58,3.46973455]
[1756718597890,0.7,203.6,203.58,3.46973455]
[1756718598096,0.7,203.6,203.57,3.46973455]
[1756718598601,0.7,203.6,203.57,8.38204283]
[1756718600986,0.7,203.6,203.57,4.91230828]
[1756718601314,4.16973455,203.62,203.57,5.59230828]
[1756718601612,4.16973455,203.62,203.58,0.68]
[1756718602295,17.12532856,203.64,203.58,3.46973455]
[1756718602604,17.12532856,203.64,203.59,0.7]
[1756718602813,17.84532856,203.64,203.59,5.61164732]
[1756718603111,4.18973455,203.63,203.58,4.91199565]
[1756718603299,0.06,203.6,203.58,4.91199565]
[1756718603501,0.06,203.6,203.58,5.61199565]
[1756718604813,0.06,203.6,203.58,0.7]
[1756718605022,0.06,203.6,203.57,4.91229487]
[1756718605201,0.06,203.6,203.57,5.61229487]
[1756718606419,0.06,203.6,203.57,4.91229487]
[1756718606728,3.46973455,203.58,203.53,4.91327843]
[1756718606924,3.46973455,203.58,203.54,0.7]
[1756718607221,3.46973455,203.58,203.55,0.7]
[1756718608117,3.46973455,203.56,203.5,4.169734]
[1756718608314,3.46973455,203.55,203.5,39.0]
[1756718608521,3.46973455,203.55,203.52,4.91352201]
[1756718608823,4.18973455,203.55,203.5,0.7]
[1756718609115,4.18973455,203.54,203.5,4.91396912]
[1756718609417,3.46973455,203.53,203.48,4.91446466]
[1756718609718,4.18973455,203.52,203.48,0.7]
[1756718610019,3.46973455,203.54,203.49,0.7]
[1756718610197,4.18973455,203.54,203.49,0.7]
[1756718610398,0.72,203.57,203.51,3.46973455]
[1756718610605,14.31559401,203.59,203.52,5.61352201]
[1756718610912,17.78532856,203.59,203.53,4.16973455]
[1756718611121,3.52973455,203.6,203.54,4.16973455]
[1756718612018,3.46973455,203.57,203.52,5.61352201]
[1756718612221,0.72,203.56,203.52,5.61352201]
[1756718613034,4.18973455,203.55,203.49,4.16973455]
[1756718613239,4.18973455,203.54,203.49,0.7]
[1756718613528,3.46973455,203.54,203.5,0.7]
[1756718614304,3.46973455,203.54,203.5,5.61384256]
[1756718614502,4.18973455,203.54,203.5,5.61384256]
[1756718615202,3.46973455,203.55,203.5,4.91384256]
[1756718615402,4.18973455,203.55,203.5,5.61384256]
[1756718615626,0.72,203.55,203.51,0.7]
[1756718616017,4.18973455,203.55,203.5,4.91384256]
[1756718616324,4.18973455,203.55,203.5,5.61384256]
[1756718617321,3.46973455,203.55,203.51,0.7]
[1756718617625,3.46973455,203.55,203.51,5.61360987]
[1756718617825,4.18973455,203.55,203.51,5.61360987]
[1756718620306,3.46973455,203.54,203.51,0.7]
[1756718620505,3.46973455,203.54,203.49,9.08374147]
[1756718620799,0.72,203.53,203.49,8.38374147]
[1756718621016,0.72,203.53,203.49,9.08374147]
[1756718622000,0.72,203.53,203.51,0.03]
[1756718622203,3.46973455,203.55,203.51,0.03]
[1756718622426,0.72,203.54,203.51,0.03]
[1756718623829,4.91257841,203.56,203.51,0.03]
[1756718623830,4.18973455,203.56,203.51,0.03]
[1756718624130,4.18973455,203.56,203.51,0.73]
[1756718624637,0.72,203.55,203.51,5.64369759]
[1756718626512,0.72,203.55,203.51,0.73]
[1756718627030,0.72,203.54,203.51,0.03]
[1756718627437,0.72,203.56,203.51,0.73]
[1756718627636,0.72,203.55,203.51,0.03]
[1756718627842,0.72,203.55,203.51,0.73]
[1756718628138,0.72,203.54,203.51,0.03]
[1756718629119,17.06532856,203.54,203.51,0.03]
[1756718629337,4.18973455,203.53,203.51,0.03]
[1756718629539,0.72,203.53,203.51,0.03]
[1756718630641,3.46973455,203.53,203.51,0.03]
[1756718630849,17.78532856,203.52,203.51,0.03]
[1756718632742,22.69885057,203.52,203.51,0.03]
[1756718632946,22.84101214,203.52,203.51,0.03]
[1756718634843,52.75775558,203.52,203.51,0.03]
[1756718635017,56.22749013,203.52,203.51,0.03]
[1756718635946,61.14101214,203.52,203.51,0.03]
[1756718636772,39.73775558,203.48,203.47,0.03]
[1756718637041,86.42197804,203.48,203.47,0.03]
[1756718637348,87.13197804,203.48,203.47,0.03]
[1756718642327,83.66224349,203.48,203.47,0.03]
[1756718642740,87.13197804,203.48,203.47,0.03]
[1756718643456,0.14216157,203.47,203.44,0.03]
[1756718643652,17.20749013,203.45,203.44,0.03]
[1756718643843,17.91749013,203.45,203.44,0.03]
[1756718645256,22.83270271,203.45,203.44,0.03]
[1756718645632,13.59559401,203.45,203.44,0.03]
[1756718645830,55.36532856,203.45,203.44,0.03]
[1756718646750,55.36532856,203.45,203.44,0.71]
[1756718646929,55.36532856,203.45,203.44,0.03]
[1756718647131,60.99054114,203.45,203.44,0.03]
[1756718647353,60.42270271,203.45,203.44,0.03]
[1756718647954,61.13270271,203.45,203.44,0.03]
[1756718648338,60.42270271,203.45,203.44,0.03]
[1756718648757,55.36532856,203.45,203.44,0.71]
[1756718648944,13.59559401,203.45,203.44,0.71]
[1756718649263,17.06532856,203.45,203.44,0.03]
[1756718650054,17.06532856,203.45,203.44,0.71]
[1756718650648,17.77532856,203.45,203.44,0.03]
[1756718651558,22.69054114,203.45,203.44,0.03]
[1756718652668,22.83270271,203.45,203.44,0.03]
[1756718658681,19.36296816,203.45,203.44,0.03]
[1756718658866,22.12270271,203.45,203.44,0.03]
[1756718659289,60.42270271,203.45,203.44,0.03]
[1756718659761,17.20749013,203.45,203.44,0.03]
[1756718659963,17.06532856,203.45,203.44,0.71]
[1756718660155,55.36532856,203.45,203.44,0.71]
[1756718661083,51.89559401,203.45,203.44,0.71]
[1756718661257,55.36532856,203.45,203.44,0.71]
[1756718662456,41.76973455,203.45,203.44,0.71]
[1756718663097,134.7,203.47,203.44,0.71]
[1756718663381,3.46973455,203.45,203.44,0.71]
[1756718663582,3.46973455,203.45,203.44,0.03]
[1756718664186,3.46973455,203.45,203.44,0.74]
[1756718665573,17.06532856,203.45,203.44,0.03]
[1756718667083,13.59559401,203.45,203.44,0.03]
[1756718667268,17.06532856,203.45,203.44,0.74]
[1756718668876,3.46973455,203.45,203.44,0.74]
[1756718669562,38.3,203.46,203.44,0.74]
[1756718669889,55.34532856,203.46,203.44,5.65543216]
[1756718670090,55.34532856,203.46,203.45,0.71]
[1756718670282,41.74973455,203.46,203.45,0.71]
[1756718670678,41.74973455,203.46,203.44,0.03]
[1756718670881,3.46973455,203.45,203.44,0.74]
[1756718671588,17.88749013,203.45,203.44,0.03]
[1756718671885,22.80270271,203.45,203.44,0.03]
[1756718676394,39.73775558,203.43,203.42,0.03]
[1756718676570,81.48749013,203.43,203.42,0.03]